fUST/lending_fUST_20240901
["ID","MTS","AMOUNT","RATE_DAILY","PERIOD"]
[336803605,1725173438952,-500.0,0.00031709,7]
[336803607,1725173438961,-283.65969007,0.00031728,7]
[336803609,1725173438973,-216.34030993,0.00031728,7]
[336803610,1725173438982,-500.0,0.00031777,7]
[336803611,1725173438991,-353.576101,0.00031781,2]
[336803612,1725173439001,-215.13560369,0.0003184,2]
[336803613,1725173439010,-800.0,0.00031842,7]
[336803614,1725173439020,-800.0,0.00031892,7]
[336803615,1725173439029,-4138.25268638,0.00031945,2]
[336803616,1725173439041,-419.04490362,0.00031945,2]
[336803617,1725173439050,-1900.67543139,0.00031946,7]
[336803618,1725173439065,-769.60415889,0.00031946,7]
[336803619,1725173439077,-2329.72040972,0.00031946,7]
[336803620,1725173439086,-500.0,0.00031953,7]
[336803621,1725173439096,-500.97538406,0.00031973,5]
[336803622,1725173439105,-1934.33698343,0.00032,7]
[336803623,1725173439116,-17667.77027035,0.00032,7]
[336803651,1725173518637,302.2,0.0002,2]
[336803659,1725174168879,163.83441,0.00014247,2]
[336803720,1725174638941,-200.0,0.00026,120]
[336803721,1725174638952,-200.0,0.00028,120]
[336803722,1725174638962,-430.080283,0.00028654,2]
[336803723,1725174638973,-400.0,0.00030155,2]
[336803724,1725174638983,-300.0,0.00030155,2]
[336803725,1725174638992,-171.0,0.00030156,2]
[336803726,1725174639002,-24900.0,0.00030156,2]
[336803727,1725174639012,-437.999908,0.00030365,2]
[336803728,1725174639022,-654.944519,0.00030365,2]
[336803729,1725174639031,-476.730614,0.00030365,2]
[336803730,1725174639040,-437.999908,0.00030744,2]
[336803732,1725174639050,-654.944519,0.00030744,2]
[336803733,1725174639059,-476.730614,0.00030744,2]
[336803734,1725174639069,-199.68441311,0.00031024,2]
[336803735,1725174639079,-437.999908,0.00031124,2]
[336803736,1725174639089,-654.944519,0.00031124,2]
[336803737,1725174639100,-476.730614,0.00031124,2]
[336803738,1725174639110,-800.0,0.00031165,7]
[336803739,1725174639120,-800.0,0.00031302,7]
[336803740,1725174639129,-199.68441309,0.00031313,2]
[336803742,1725174639138,-500.0,0.00031359,7]
[336803743,1725174639147,-500.0,0.00031481,7]
[336803744,1725174639157,-800.0,0.000315,7]
[336803745,1725174639166,-500.0,0.00031503,7]
[336803746,1725174639175,-437.999908,0.00031504,2]
[336803747,1725174639185,-654.944519,0.00031504,2]
[336803748,1725174639194,-476.730614,0.00031504,2]
[336803749,1725174639203,-5583.70176671,0.0003154,2]
[336803750,1725174639213,-500.0,0.00031592,7]
[336803751,1725174639222,-199.68441309,0.00031603,2]
[336803752,1725174639231,-151.52689542,0.00031623,2]
[336803753,1725174639240,-345.109144,0.00031781,2]
[336803754,1725174639250,-500.0,0.00031792,7]
[336803755,1725174639260,-800.0,0.0003186,7]
[336803756,1725174639268,-437.999908,0.00031883,2]
[336803757,1725174639278,-654.944519,0.00031883,2]
[336803758,1725174639287,-476.730614,0.00031883,2]
[336803759,1725174639296,-199.68441309,0.00031892,2]
[336803760,1725174639304,-500.0,0.00031912,7]
[336803761,1725174639314,-207.943127,0.00031942,2]
[336803762,1725174639323,-211.1582575,0.00031942,2]
[336803763,1725174639334,-207.943127,0.00031942,2]
[336803764,1725174639343,-207.943127,0.00031942,2]
[336803765,1725174639352,-207.943127,0.00031942,2]
[336803766,1725174639361,-414.8194309,0.00031942,2]
[336803767,1725174639371,-4071.74225122,0.00032,7]
[336803768,1725174639382,-11828.05721251,0.00032,2]
[336803769,1725174639392,-1000.0,0.00032,2]
[336803770,1725174639402,-466.73965656,0.00032,7]
[336803771,1725174639411,-500.0,0.00032064,7]
[336803772,1725174639420,-199.68441309,0.00032181,2]
[336803773,1725174639430,-500.0,0.00032222,2]
[336803774,1725174639438,-500.0,0.00032222,2]
[336803775,1725174639447,-500.0,0.00032222,2]
[336803776,1725174639456,-7377.88485687,0.00032228,5]
[336803777,1725174639465,-757.70790288,0.00032228,2]
[336803778,1725174639475,-800.0,0.00032229,7]
[336803779,1725174639485,-329.74861221,0.00032327,11]
[336803780,1725174639495,-272.18409028,0.00032327,2]
[336803781,1725174639505,-500.0,0.00032327,2]
[336803782,1725174639517,-627.37775878,0.00032327,2]
[336803783,1725174639528,-154.27878837,0.00032327,2]
[336803784,1725174639538,-500.0,0.00032327,2]
[336803785,1725174639547,-500.0,0.00032327,2]
[336803786,1725174639556,-500.0,0.00032327,2]
[336803787,1725174639565,-500.0,0.00032327,2]
[336803788,1725174639576,-500.0,0.00032327,2]
[336803789,1725174639586,-497.37188474,0.00032327,2]
[336803790,1725174639597,-500.0,0.00032327,2]
[336803791,1725174639608,-500.0,0.00032327,2]
[336803792,1725174639617,-500.0,0.00032327,2]
[336803793,1725174639627,-500.0,0.00032327,2]
[336803794,1725174639637,-500.0,0.00032328,31]
[336803795,1725174639649,-500.0,0.00032328,31]
[336803796,1725174639660,-500.0,0.00032328,31]
[336803797,1725174639670,-364.57423646,0.00032328,31]
[336803798,1725174639680,-511.81801946,0.00032328,31]
[336803799,1725174639689,-500.0,0.00032328,31]
[336803800,1725174639700,-500.0,0.00032328,31]
[336803801,1725174639711,-500.0,0.00032328,31]
[336803802,1725174639720,-500.0,0.00032328,31]
[336803803,1725174639730,-500.0,0.00032328,31]
[336803804,1725174639739,-500.0,0.00032328,31]
[336803805,1725174639750,-500.0,0.00032328,31]
[336803806,1725174639760,-500.0,0.00032328,31]
[336803807,1725174639769,-500.0,0.00032328,31]
[336803808,1725174639779,-500.0,0.00032328,31]
[336803809,1725174639788,-500.0,0.00032328,31]
[336803810,1725174639798,-500.0,0.00032328,31]
[336803811,1725174639807,-500.0,0.00032328,31]
[336803812,1725174639818,-500.0,0.00032328,31]
[336803813,1725174639828,-500.0,0.00032328,31]
[336803814,1725174639838,-500.0,0.00032328,31]
[336803815,1725174639848,-500.0,0.00032328,31]
[336803816,1725174639859,-500.0,0.00032328,31]
[336803817,1725174639869,-500.0,0.00032328,31]
[336803818,1725174639879,-508.14,0.00032328,31]
[336803819,1725174639888,-500.0,0.00032328,31]
[336803820,1725174639898,-500.0,0.00032328,31]
[336803821,1725174639908,-500.0,0.00032328,31]
[336803822,1725174639917,-500.0,0.00032328,31]
[336803823,1725174639927,-500.0,0.00032328,31]
[336803824,1725174639938,-500.0,0.00032328,31]
[336803825,1725174639947,-388.26304781,0.00032328,31]
[336803826,1725174639957,-500.0,0.00032328,31]
[336803827,1725174639967,-500.0,0.00032328,31]
[336803828,1725174639977,-500.0,0.00032328,31]
[336803829,1725174639986,-500.0,0.00032328,31]
[336803830,1725174639996,-500.0,0.00032328,21]
[336803831,1725174640006,-500.0,0.00032328,31]
[336803832,1725174640016,-500.0,0.00032328,31]
[336803833,1725174640025,-500.0,0.00032328,31]
[336803834,1725174640035,-500.0,0.00032328,31]
[336803835,1725174640045,-501.23934247,0.00032328,31]
[336803836,1725174640054,-500.0,0.00032328,31]
[336803837,1725174640064,-500.0,0.00032328,31]
[336803838,1725174640073,-500.0,0.00032328,31]
[336803839,1725174640083,-500.0,0.00032328,31]
[336803840,1725174640093,-500.0,0.00032328,31]
[336803841,1725174640103,-500.0,0.00032328,31]
[336803842,1725174640112,-245.43634297,0.00032328,31]
[336803843,1725174640122,-500.0,0.00032328,31]
[336803844,1725174640132,-500.0,0.00032328,31]
[336803845,1725174640141,-500.0,0.00032328,31]
[336803846,1725174640150,-500.0,0.00032328,31]
[336803847,1725174640159,-564.97,0.00032328,31]
[336803848,1725174640168,-500.0,0.00032328,31]
[336803849,1725174640178,-500.0,0.00032328,31]
[336803851,1725174640187,-500.0,0.00032328,31]
[336803852,1725174640197,-500.0,0.00032328,31]
[336803853,1725174640206,-500.0,0.00032328,31]
[336803854,1725174640215,-392.95,0.00032328,31]
[336803855,1725174640225,-500.0,0.00032328,31]
[336803856,1725174640235,-500.0,0.00032328,31]
[336803857,1725174640244,-502.28102163,0.00032328,31]
[336803858,1725174640254,-500.0,0.00032328,31]
[336803859,1725174640264,-500.0,0.00032328,31]
[336803860,1725174640274,-500.0,0.00032328,31]
[336803861,1725174640284,-500.0,0.00032328,31]
[336803862,1725174640293,-500.0,0.00032328,31]
[336803863,1725174640303,-504.45311609,0.00032328,31]
[336803864,1725174640314,-500.0,0.00032328,31]
[336803865,1725174640324,-500.0,0.00032328,31]
[336803866,1725174640334,-500.0,0.00032328,31]
[336803867,1725174640343,-500.0,0.00032328,31]
[336803868,1725174640353,-500.0,0.00032328,31]
[336803869,1725174640362,-500.0,0.00032328,31]
[336803870,1725174640372,-500.0,0.00032328,31]
[336803871,1725174640383,-500.0,0.00032328,31]
[336803872,1725174640393,-500.89430039,0.00032328,31]
[336803873,1725174640403,-503.75109237,0.00032328,31]
[336803874,1725174640412,-500.08426394,0.00032328,31]
[336803875,1725174640422,-500.0,0.00032328,31]
[336803876,1725174640432,-500.82052029,0.00032328,31]
[336803877,1725174640442,-500.0,0.00032328,31]
[336803878,1725174640451,-500.0,0.00032328,31]
[336803879,1725174640462,-336.47556225,0.00032328,31]
[336803880,1725174640472,-566.62755411,0.00032328,31]
[336803881,1725174640482,-500.0,0.00032328,31]
[336803882,1725174640491,-500.0,0.00032328,31]
[336803883,1725174640501,-500.0,0.00032328,31]
[336803885,1725174640510,-500.0,0.00032328,31]
[336803886,1725174640520,-500.0,0.00032328,31]
[336803888,1725174640529,-500.0,0.00032328,31]
[336803889,1725174640539,-500.0,0.00032328,31]
[336803891,1725174640548,-547.41783955,0.00032328,31]
[336803892,1725174640558,-500.0,0.00032328,31]
[336803893,1725174640568,-500.0,0.00032328,31]
[336803894,1725174640578,-500.0,0.00032328,31]
[336803895,1725174640587,-500.0,0.00032328,31]
[336803896,1725174640597,-500.0,0.00032328,31]
[336803897,1725174640606,-501.87851151,0.00032328,31]
[336803898,1725174640616,-500.0,0.00032328,31]
[336803899,1725174640625,-505.40657829,0.00032328,31]
[336803900,1725174640634,-500.0,0.00032328,31]
[336803901,1725174640643,-501.88021829,0.00032328,31]
[336803902,1725174640653,-500.0,0.00032328,31]
[336803903,1725174640663,-500.0,0.00032328,31]
[336803904,1725174640672,-500.0,0.00032328,31]
[336803905,1725174640682,-500.0,0.00032328,31]
[336803906,1725174640691,-500.0,0.00032328,31]
[336803907,1725174640701,-500.0,0.00032328,31]
[336803908,1725174640711,-500.0,0.00032328,31]
[336803909,1725174640720,-500.0,0.00032328,31]
[336803910,1725174640729,-500.0,0.00032328,31]
[336803911,1725174640738,-500.0,0.00032328,31]
[336803912,1725174640748,-500.0,0.00032328,31]
[336803913,1725174640758,-500.0,0.00032328,31]
[336803914,1725174640768,-501.55286444,0.00032328,31]
[336803915,1725174640776,-500.0,0.00032328,31]
[336803917,1725174640786,-500.0,0.00032328,31]
[336803918,1725174640796,-500.0,0.00032328,31]
[336803920,1725174640805,-500.0,0.00032328,31]
[336803922,1725174640814,-500.0,0.00032328,31]
[336803923,1725174640824,-500.0,0.00032328,31]
[336803924,1725174640833,-500.0,0.00032328,31]
[336803926,1725174640844,-500.0,0.00032328,31]
[336803927,1725174640853,-500.0,0.00032328,31]
[336803928,1725174640863,-501.94255959,0.00032328,31]
[336803929,1725174640872,-500.0,0.00032328,31]
[336803930,1725174640882,-586.37383244,0.00032328,31]
[336803931,1725174640892,-500.0,0.00032328,20]
[336803932,1725174640902,-500.0,0.00032328,31]
[336803933,1725174640912,-500.0,0.00032328,31]
[336803934,1725174640923,-500.98857739,0.00032328,31]
[336803935,1725174640932,-500.0,0.00032328,31]
[336803936,1725174640943,-500.0,0.00032328,31]
[336803937,1725174640954,-500.0,0.00032328,31]
[336803938,1725174640963,-500.0,0.00032328,31]
[336803939,1725174640973,-500.0,0.00032328,31]
[336803940,1725174640982,-500.0,0.00032328,31]
[336803941,1725174640991,-500.0,0.00032328,31]
[336803942,1725174641003,-502.47261717,0.00032328,31]
[336803943,1725174641014,-500.0,0.00032328,31]
[336803944,1725174641025,-500.0,0.00032328,31]
[336803945,1725174641034,-500.0,0.00032328,31]
[336803946,1725174641044,-500.0,0.00032328,31]
[336803947,1725174641055,-500.0,0.00032328,31]
[336803948,1725174641065,-500.48309989,0.00032328,31]
[336803949,1725174641074,-500.0,0.00032328,31]
[336803950,1725174641083,-500.0,0.00032328,31]
[336803951,1725174641093,-500.0,0.00032328,31]
[336803952,1725174641103,-500.0,0.00032328,31]
[336803953,1725174641112,-321.68037138,0.00032328,31]
[336803954,1725174641245,-621.53628256,0.00032328,31]
[336803955,1725174641255,-500.0,0.00032328,31]
[336803956,1725174641265,-500.0,0.00032328,31]
[336803957,1725174641274,-500.0,0.00032328,31]
[336803958,1725174641283,-500.0,0.00032328,31]
[336803959,1725174641292,-505.85,0.00032328,31]
[336803960,1725174641301,-343.90495402,0.00032328,31]
[336803961,1725174641311,-500.0,0.00032328,31]
[336803962,1725174641322,-500.0,0.00032328,31]
[336803963,1725174641334,-500.0,0.00032328,31]
[336803964,1725174641344,-641.68124141,0.00032328,31]
[336803965,1725174641354,-500.0,0.00032328,31]
[336803966,1725174641364,-500.0,0.00032328,31]
[336803967,1725174641374,-500.0,0.00032328,31]
[336803968,1725174641385,-500.0,0.00032328,31]
[336803969,1725174641394,-501.04972053,0.00032328,31]
[336803970,1725174641403,-500.0,0.00032328,31]
[336803971,1725174641413,-504.08,0.00032328,31]
[336803972,1725174641422,-500.0,0.00032328,31]
[336803973,1725174641431,-501.88170718,0.00032328,31]
[336803974,1725174641440,-500.0,0.00032328,31]
[336803975,1725174641450,-500.0,0.00032328,31]
[336803976,1725174641462,-500.0,0.00032328,31]
[336803977,1725174641472,-500.0,0.00032328,7]
[336803978,1725174641482,-500.0,0.00032328,31]
[336803979,1725174641493,-500.0,0.00032328,31]
[336803980,1725174641505,-500.0,0.00032328,31]
[336803981,1725174641517,-500.0,0.00032328,31]
[336803982,1725174641526,-500.0,0.00032328,31]
[336803983,1725174641535,-500.0,0.00032328,31]
[336803984,1725174641546,-500.0,0.00032328,31]
[336803985,1725174641554,-500.0,0.00032328,30]
[336803986,1725174641564,-500.65209689,0.00032328,31]
[336803987,1725174641573,-500.0,0.00032328,30]
[336803988,1725174641582,-500.0,0.00032328,30]
[336803989,1725174641591,-500.0,0.00032328,30]
[336803990,1725174641601,-500.0,0.00032328,31]
[336803991,1725174641611,-500.0,0.00032328,31]
[336803992,1725174641620,-500.0,0.00032328,31]
[336803993,1725174641629,-500.0,0.00032328,31]
[336803994,1725174641638,-503.57369598,0.00032328,31]
[336803995,1725174641648,-500.0,0.00032328,31]
[336803996,1725174641656,-500.0,0.00032328,31]
[336803997,1725174641665,-500.0,0.00032328,31]
[336803998,1725174641675,-500.0,0.00032328,31]
[336803999,1725174641684,-500.0,0.00032328,31]
[336804000,1725174641693,-500.0,0.00032328,31]
[336804001,1725174641703,-500.0,0.00032328,31]
[336804002,1725174641712,-500.0,0.00032328,31]
[336804003,1725174641721,-500.0,0.00032328,31]
[336804004,1725174641730,-500.0,0.00032328,31]
[336804005,1725174641739,-500.0,0.00032328,31]
[336804006,1725174641749,-500.0,0.00032328,31]
[336804007,1725174641760,-500.0,0.00032328,31]
[336804008,1725174641768,-500.0,0.00032328,31]
[336804009,1725174641777,-500.0,0.00032328,31]
[336804010,1725174641787,-364.66821983,0.00032328,31]
[336804011,1725174641795,-500.0,0.00032328,31]
[336804012,1725174641804,-500.0,0.00032328,31]
[336804013,1725174641814,-500.0,0.00032328,31]
[336804014,1725174641824,-500.0,0.00032328,31]
[336804015,1725174641834,-500.0,0.00032328,31]
[336804016,1725174641844,-500.0,0.00032328,31]
[336804017,1725174641853,-500.0,0.00032328,31]
[336804018,1725174641865,-500.0,0.00032328,31]
[336804019,1725174641875,-500.0,0.00032328,31]
[336804020,1725174641886,-527.84133432,0.00032328,31]
[336804021,1725174641896,-500.0,0.00032328,31]
[336804022,1725174641906,-500.0,0.00032328,31]
[336804023,1725174641917,-500.0,0.00032328,31]
[336804024,1725174641928,-500.0,0.00032328,31]
[336804025,1725174641938,-268.47265207,0.00032328,31]
[336804026,1725174641948,-500.0,0.00032328,31]
[336804027,1725174641959,-500.0,0.00032328,31]
[336804028,1725174641968,-311.31275787,0.00032328,31]
[336804029,1725174641977,-500.0,0.00032328,31]
[336804030,1725174641987,-500.0,0.00032328,31]
[336804031,1725174641996,-500.0,0.00032328,31]
[336804032,1725174642006,-500.0,0.00032328,31]
[336804033,1725174642015,-500.0,0.00032328,31]
[336804034,1725174642027,-500.0,0.00032328,31]
[336804035,1725174642037,-500.0,0.00032328,31]
[336804036,1725174642047,-500.0,0.00032328,31]
[336804037,1725174642056,-500.0,0.00032328,31]
[336804038,1725174642065,-500.0,0.00032328,31]
[336804039,1725174642074,-500.0,0.00032328,21]
[336804040,1725174642084,-500.0,0.00032328,31]
[336804041,1725174642093,-500.0,0.00032328,31]
[336804042,1725174642102,-500.0,0.00032328,31]
[336804043,1725174642111,-500.0,0.00032328,31]
[336804044,1725174642121,-500.0,0.00032328,31]
[336804045,1725174642131,-500.0,0.00032328,31]
[336804046,1725174642140,-500.0,0.00032328,31]
[336804047,1725174642149,-500.0,0.00032328,31]
[336804048,1725174642160,-630.80367971,0.00032328,31]
[336804049,1725174642169,-500.0,0.00032328,31]
[336804050,1725174642179,-500.0,0.00032328,31]
[336804051,1725174642189,-500.0,0.00032328,31]
[336804052,1725174642200,-500.0,0.00032328,31]
[336804053,1725174642212,-500.0,0.00032328,31]
[336804054,1725174642222,-500.0,0.00032328,31]
[336804055,1725174642232,-501.72010827,0.00032328,31]
[336804056,1725174642242,-500.0,0.00032328,31]
[336804057,1725174642253,-500.0,0.00032328,31]
[336804058,1725174642265,-500.0,0.00032328,31]
[336804059,1725174642275,-500.0,0.00032328,31]
[336804060,1725174642284,-604.74017198,0.00032328,31]
[336804061,1725174642293,-235.44041807,0.00032328,31]
[336804062,1725174642302,-500.0,0.00032328,31]
[336804063,1725174642311,-500.0,0.00032328,31]
[336804064,1725174642322,-500.99979806,0.00032328,31]
[336804065,1725174642332,-500.0,0.00032328,31]
[336804066,1725174642342,-500.0,0.00032328,31]
[336804067,1725174642353,-500.0,0.00032328,31]
[336804068,1725174642362,-500.0,0.00032328,31]
[336804069,1725174642372,-500.0,0.00032328,31]
[336804070,1725174642386,-500.0,0.00032328,31]
[336804071,1725174642396,-520.18306572,0.00032328,31]
[336804072,1725174642405,-500.0,0.00032328,31]
[336804073,1725174642415,-500.0,0.00032328,31]
[336804074,1725174642425,-502.21915351,0.00032328,31]
[336804075,1725174642435,-500.0,0.00032328,31]
[336804076,1725174642445,-500.0,0.00032328,31]
[336804077,1725174642456,-500.0,0.00032328,31]
[336804078,1725174642466,-500.0,0.00032328,31]
[336804079,1725174642475,-506.44536455,0.00032328,31]
[336804080,1725174642484,-500.0,0.00032328,31]
[336804081,1725174642494,-500.0,0.00032328,31]
[336804082,1725174642503,-500.0,0.00032328,31]
[336804083,1725174642514,-500.0,0.00032328,31]
[336804084,1725174642523,-500.0,0.00032328,31]
[336804085,1725174642533,-500.0,0.00032328,31]
[336804086,1725174642542,-500.0,0.00032328,31]
[336804087,1725174642551,-500.0,0.00032328,31]
[336804088,1725174642560,-500.0,0.00032328,31]
[336804089,1725174642570,-474.86260083,0.00032328,31]
[336804090,1725174642579,-500.0,0.00032328,31]
[336804091,1725174642588,-502.29434108,0.00032328,31]
[336804092,1725174642598,-500.0,0.00032328,31]
[336804093,1725174642608,-500.0,0.00032328,31]
[336804094,1725174642618,-500.0,0.00032328,31]
[336804095,1725174642627,-500.0,0.00032328,31]
[336804096,1725174642637,-500.0,0.00032328,31]
[336804097,1725174642646,-500.0,0.00032328,31]
[336804098,1725174642656,-500.0,0.00032328,31]
[336804099,1725174642666,-503.22199693,0.00032328,31]
[336804100,1725174642675,-500.0,0.00032328,31]
[336804101,1725174642684,-500.0,0.00032328,31]
[336804102,1725174642693,-503.37685167,0.00032328,31]
[336804103,1725174642702,-500.0,0.00032328,31]
[336804104,1725174642712,-500.0,0.00032328,31]
[336804105,1725174642721,-500.0,0.00032328,31]
[336804106,1725174642731,-500.0,0.00032328,31]
[336804107,1725174642742,-500.0,0.00032328,31]
[336804108,1725174642754,-500.0,0.00032328,31]
[336804109,1725174642765,-500.0,0.00032328,31]
[336804110,1725174642774,-500.0,0.00032328,31]
[336804111,1725174642783,-500.0,0.00032328,31]
[336804112,1725174642792,-500.87094952,0.00032328,31]
[336804113,1725174642801,-500.0,0.00032328,31]
[336804114,1725174642811,-500.0,0.00032328,31]
[336804115,1725174642821,-500.0,0.00032328,31]
[336804116,1725174642832,-500.0,0.00032328,31]
[336804117,1725174642843,-500.59762837,0.00032328,31]
[336804118,1725174642854,-500.0,0.00032328,31]
[336804119,1725174642864,-500.0,0.00032328,31]
[336804120,1725174642874,-500.0,0.00032328,14]
[336804121,1725174642883,-500.0,0.00032328,14]
[336804122,1725174642892,-500.0,0.00032328,31]
[336804123,1725174642902,-500.49295349,0.00032328,31]
[336804124,1725174642911,-500.0,0.00032328,31]
[336804125,1725174642921,-500.0,0.00032328,31]
[336804126,1725174642930,-500.0,0.00032328,31]
[336804127,1725174642941,-500.0,0.00032328,31]
[336804128,1725174642951,-500.0,0.00032328,31]
[336804129,1725174642960,-500.0,0.00032328,31]
[336804130,1725174642970,-500.0,0.00032328,31]
[336804131,1725174642981,-406.73,0.00032328,31]
[336804132,1725174642991,-500.0,0.00032328,31]
[336804133,1725174643000,-500.0,0.00032328,7]
[336804134,1725174643011,-206.08360037,0.00032328,7]
[336804135,1725174643020,-500.0,0.00032328,31]
[336804136,1725174643029,-591.89,0.00032328,31]
[336804137,1725174643039,-500.0,0.00032328,31]
[336804138,1725174643048,-500.0,0.00032328,31]
[336804139,1725174643057,-500.0,0.00032328,31]
[336804140,1725174643066,-500.0,0.00032328,31]
[336804141,1725174643075,-500.0,0.00032328,31]
[336804142,1725174643085,-500.0,0.00032328,31]
[336804143,1725174643094,-500.0,0.00032328,31]
[336804144,1725174643103,-506.9587952,0.00032328,31]
[336804145,1725174643113,-500.0,0.00032328,31]
[336804146,1725174643122,-500.0,0.00032328,31]
[336804147,1725174643132,-500.0,0.00032328,31]
[336804148,1725174643142,-500.0,0.00032328,31]
[336804149,1725174643151,-500.0,0.00032328,31]
[336804150,1725174643160,-500.0,0.00032328,31]
[336804151,1725174643170,-500.0,0.00032328,31]
[336804152,1725174643179,-500.0,0.00032328,31]
[336804153,1725174643189,-503.07585251,0.00032328,31]
[336804154,1725174643199,-500.0,0.00032328,31]
[336804155,1725174643208,-507.27457219,0.00032328,31]
[336804156,1725174643217,-500.0,0.00032328,31]
[336804157,1725174643227,-500.0,0.00032328,31]
[336804158,1725174643236,-506.79964495,0.00032328,31]
[336804159,1725174643246,-500.0,0.00032328,31]
[336804160,1725174643256,-500.0,0.00032328,31]
[336804161,1725174643266,-526.15166708,0.00032328,31]
[336804162,1725174643275,-500.0,0.00032328,31]
[336804163,1725174643286,-424.81544507,0.00032328,31]
[336804164,1725174643295,-500.0,0.00032328,31]
[336804165,1725174643304,-500.0,0.00032328,31]
[336804166,1725174643314,-500.0,0.00032328,31]
[336804167,1725174643324,-629.88036882,0.00032328,31]
[336804168,1725174643334,-502.18694785,0.00032328,31]
[336804169,1725174643345,-500.0,0.00032328,31]
[336804170,1725174643354,-500.0,0.00032328,31]
[336804171,1725174643477,-500.0,0.00032328,31]
[336804173,1725174643486,-502.06357948,0.00032328,31]
[336804174,1725174643496,-503.85085614,0.00032328,31]
[336804175,1725174643505,-500.0,0.00032328,31]
[336804176,1725174643516,-500.0,0.00032328,31]
[336804177,1725174643525,-500.0,0.00032328,31]
[336804178,1725174643535,-500.0,0.00032328,31]
[336804179,1725174643544,-505.27949892,0.00032328,31]
[336804180,1725174643553,-500.0,0.00032328,31]
[336804181,1725174643563,-500.0,0.00032328,31]
[336804182,1725174643572,-500.0,0.00032328,31]
[336804183,1725174643581,-170.55112977,0.00032328,31]
[336804184,1725174643591,-500.0,0.00032328,31]
[336804185,1725174643601,-500.0,0.00032328,31]
[336804186,1725174643610,-500.0,0.00032328,31]
[336804187,1725174643620,-506.57500651,0.00032328,31]
[336804188,1725174643629,-500.0,0.00032328,31]
[336804189,1725174643639,-506.44842295,0.00032328,31]
[336804190,1725174643649,-500.0,0.00032328,31]
[336804191,1725174643658,-500.0,0.00032328,31]
[336804192,1725174643667,-501.8768843,0.00032328,31]
[336804193,1725174643676,-272.39747216,0.00032328,31]
[336804194,1725174643686,-500.0,0.00032328,31]
[336804195,1725174643695,-500.0,0.00032328,31]
[336804196,1725174643704,-500.0,0.00032328,31]
[336804197,1725174643713,-500.0,0.00032328,31]
[336804198,1725174643723,-500.0,0.00032328,31]
[336804199,1725174643732,-503.61261762,0.00032328,31]
[336804200,1725174643742,-500.0,0.00032328,31]
[336804201,1725174643751,-500.0,0.00032328,31]
[336804202,1725174643761,-500.0,0.00032328,31]
[336804203,1725174643770,-502.56011825,0.00032328,31]
[336804204,1725174643779,-500.0,0.00032328,31]
[336804205,1725174643789,-500.0,0.00032328,31]
[336804206,1725174643798,-500.0,0.00032328,31]
[336804207,1725174643807,-500.0,0.00032328,31]
[336804208,1725174643817,-500.0,0.00032328,31]
[336804209,1725174643826,-500.0,0.00032328,31]
[336804210,1725174643836,-500.0,0.00032328,31]
[336804211,1725174643845,-500.0,0.00032328,31]